Cogmind - Beta 13 @@@ ROGUE MODE // 2024.04.14 @ 16:57:50 Player: Essnato Result: Destroyed by D-53 Grenadier with Mini Grenade Launcher Performance ------------- Evolutions (0) 0 Regions Visited (2) 400 Robots Destroyed (15) 75 Value Destroyed (259) 259 Prototype IDs (0) 0 Alien Tech Used (0) 0 Bonus (0) 0 TOTAL SCORE: 734 Bonus ------- None Cogmind --------- Core Integrity 0/250 Matter 300/300 Energy 100/100 System Corruption 0% Temperature Cool (0) Movement Core (50) Location -10/Mines Parts ------- > --- POWER (1) -------- (None) > --- PROPULSION (2) --- (None) > --- UTILITY (2) ------ (None) > --- WEAPON (2) ------- (None) > --- INVENTORY (5) ---- Ion Engine Light Ion Engine Light Nuclear Core Compact Wheel Signal Interpreter Peak State ------------ > --- POWER ------------ Light Nuclear Core > --- PROPULSION ------- Light Treads Light Treads > --- UTILITY ---------- Small Storage Unit Large Matter Pod > --- WEAPON ----------- Assault Rifle Light Assault Rifle > --- INVENTORY -------- Ion Engine Light Ion Engine Compact Wheel Compact Wheel [Rating: 9] Favorites ----------- Power Light Nuclear Core Engine Ion Engine Power Core Light Nuclear Core Propulsion Light Treads Treads Light Treads Utility Small Storage Unit Storage Small Storage Unit Weapon Light Assault Rifle Ballistic Gun Light Assault Rifle Build | -11 -10 -10 ------- Run | Yrd Mat Min Slots Evolved . | . . . Power . | . . . Propulsion . | . . . Utility . | . . . Weapon . | . . . Parts Attached 9 | 6 3 . Power 2 | 1 1 . Engine 1 | 1 . . Core 1 | . 1 . Reactor . | . . . Propulsion 2 | 2 . . Treads 2 | 2 . . Leg . | . . . Wheel . | . . . Hover . | . . . Flight . | . . . Utility 3 | 1 2 . Device . | . . . Storage 3 | 1 2 . Processor . | . . . Hackware . | . . . Protection . | . . . Artifact . | . . . Weapon 2 | 2 . . Energy Gun . | . . . Energy Cannon . | . . . Ballistic Gun 2 | 2 . . Ballistic Cannon . | . . . Launcher . | . . . Special Weapon . | . . . Impact Weapon . | . . . Slashing Weapon . | . . . Piercing Weapon . | . . . Special Melee Weapon . | . . . Unidentified Prototypes . | . . . Parts Lost . | . . . Power . | . . . Propulsion . | . . . Utility . | . . . Weapon . | . . . Highest Loss Streak . | . . . To Critical Strikes . | . . . Average Slot Usage (%) 98 | . 96 100 Engine 6 | . 11 . Core 7 | . 2 14 Treads 28 | . 28 28 Storage 26 | . 24 28 Ballistic Gun 28 | . 28 28 Naked Turns 3 | . . 3 Heaviest Build 16 | 13 16 16 Greatest Support 40 | 40 40 40 Greatest Overweight (x) . | . . . Average Overweight (x) . | . . . Largest Inventory Capacity 8 | 8 8 8 Average Capacity 7 | 7 8 7 Most Carried 6 | 3 5 6 Average Carried 4 | 1 3 5 Final Capacity 8 | 8 8 5 Final Carried 5 | 3 5 5 Class Distribution -------------------- 100% | Mutant Dominant Class ---------------- Mutant | -10/Materials Mutant | -10/Mines Resources | -11 -10 -10 ----------- Run | Yrd Mat Min Matter Collected 557 | 236 123 198 Remotely . | . . . Salvage Created 414 | 78 136 200 Parts 37 | 2 13 22 Haulers Intercepted . | . . . Recyclers Shooed . | . . . Parts Field Recycled . | . . . Retrieved Matter . | . . . Parts Self-Destructed . | . . . Prevented . | . . . Kills | -11 -10 -10 ------- Run | Yrd Mat Min Combat Hostiles Destroyed 13 | . 5 8 Guns 13 | . 5 8 Classes Destroyed 4 | 1 2 1 Worker 1 | . . 1 Recycler 1 | 1 . . Swarmer 9 | . 3 6 Grunt 4 | . 2 2 Best Kill Streak 4 | 1 3 4 Combat Bots Only 3 | . 3 3 Max Kills in Single Turn 2 | 1 1 2 Gunslinging . | . . . Exploded . | . . . Melee . | . . . Uniques/NPCs Destroyed . | . . . Combat | -11 -10 -10 -------- Run | Yrd Mat Min Hostile Shots Fired 73 | . 30 43 Missed 15 | . 5 10 Damage Taken 685 | . 256 429 Core 254 | . 90 164 Absorbed by Shields . | . . . Core Remaining (%) 100 | 100 . . Volleys Fired 36 | 2 18 16 Largest 2 | 2 2 2 Hottest 40 | 40 40 40 Shots Fired 72 | 4 36 32 Gun 72 | 4 36 32 Cannon . | . . . Launcher . | . . . Special . | . . . Kinetic 72 | 4 36 32 Thermal . | . . . Explosive . | . . . Electromagnetic . | . . . Robot Hit Streak 12 | 4 4 12 Robot Miss Streak 7 | . 7 2 Penetration Max . | . . . Secondary Targets 1 | . . 1 Max Gunslinging Chain 1 | . . 1 Shots Hit Robots 41 | 4 14 23 Core Hits 25 | 2 10 13 Critical Kills . | . . . Critical Parts Destroyed . | . . . Critical Strikes . | . . . Melee Attacks . | . . . Impact . | . . . Slashing . | . . . Piercing . | . . . Sneak Attacks . | . . . Combat Hostiles . | . . . Follow-up Attacks . | . . . Damage Inflicted 453 | 41 147 265 Guns 453 | 41 147 265 Cannons . | . . . Explosions . | . . . Melee . | . . . Ramming . | . . . Kinetic 453 | 41 147 265 Thermal . | . . . Explosive . | . . . Electromagnetic . | . . . Impact . | . . . Slashing . | . . . Piercing . | . . . Highest Corruption . | . . . Average Corruption . | . . . Corruption Purged . | . . . Corruption Blocked . | . . . Overload Shots . | . . . Overflow Damage . | . . . Projectiles . | . . . Explosions . | . . . Melee . | . . . Knockbacks . | . . . Impact . | . . . Kinetic . | . . . Secondary . | . . . Self-Inflicted Damage . | . . . Shots . | . . . Rammed . | . . . Targets Rammed . | . . . Kicked . | . . . Crushed . | . . . Highest Temperature 25 | . 25 17 Average Temperature 8 | . 15 5 Received Heat Transfer 132 | . 78 54 Siege Activations . | . . . Robots Corrupted . | . . . Combat Hostiles . | . . . Parts Fried . | . . . Impact Corruptions . | . . . Robots Melted . | . . . Combat Hostiles . | . . . Parts Melted . | . . . Heat Transferred . | . . . Parts Sabotaged . | . . . Parts Stolen . | . . . Parts Stripped . | . . . Power Chain Reactions . | . . . Alert | -11 -10 -10 ------- Run | Yrd Mat Min Peak Influence 210 | 5 194 210 Initial 3 | . 3 . Average 72 | 1 88 77 Maximum Alert Level 1 | . . 1 Low Security (%) 91 | 100 100 78 Level 1 8 | . . 21 Level 2 . | . . . Level 3 . | . . . Level 4 . | . . . Level 5 . | . . . High Security . | . . . Max Security . | . . . Squads Dispatched . | . . . Investigation . | . . . Extermination . | . . . Reinforcement . | . . . Assault . | . . . Garrison . | . . . Intercept . | . . . Searches Triggered . | . . . Construction Impeded . | . . . Haulers Reinforced . | . . . Active Scanning Responses . | . . . Cargo Convoy Interrupts . | . . . Stealth | -11 -10 -10 --------- Run | Yrd Mat Min Distress Signals . | . . . Communications Jammed . | . . . Distress Signals . | . . . Times Spotted 22 | . 11 11 Peak Tracking Total 4 | . 4 3 Tactical Retreats 2 | . 1 1 Traps | -11 -10 -10 ------- Run | Yrd Mat Min Traps Triggered . | . . . Indirectly . | . . . Trap Hack Attempts . | . . . Triggered . | . . . Disarmed . | . . . Reprogrammed . | . . . Reused . | . . . Traps Extracted . | . . . Installed . | . . . Triggered . | . . . Machines | -11 -10 -10 ---------- Run | Yrd Mat Min Machines Disabled . | . . . Max in Single Turn . | . . . Machines Repaired . | . . . Machines Dismantled . | . . . Machines Sabotaged . | . . . Overloaded Fab Kills . | . . . Hacking | -11 -10 -10 --------- Run | Yrd Mat Min Machines Accessed 4 | . 4 . Terminals 4 | . 4 . Fabricators . | . . . Repair Stations . | . . . Recycling Units . | . . . Scanalyzers . | . . . Garrison Access . | . . . Total Hacks 11 | . 11 . Successful 6 | . 6 . Failed 5 | . 5 . Catastrophic 1 | . 1 . Database Lockouts . | . . . Manual 3 | . 3 . Terminals 11 | . 11 . Fabricators . | . . . Repair Stations . | . . . Recycling Units . | . . . Scanalyzers . | . . . Garrison Access . | . . . Terminal Hacks 5 | . 5 . Record 2 | . 2 . Emergency Access Points 1 | . 1 . Terminal Index 1 | . 1 . Dispatch Records 1 | . 1 . Fabricator Hacks . | . . . Repair Station Hacks . | . . . Recycling Unit Hacks . | . . . Scanalyzer . | . . . Garrison Access Hacks . | . . . Unauthorized Hacks 1 | . 1 . Terminals 1 | . 1 . Assimilate 1 | . 1 . Fabricators . | . . . Repair Stations . | . . . Recycling Units . | . . . Scanalyzers . | . . . Garrison Access . | . . . Data Cores Recovered . | . . . Used . | . . . Hacking Detections 3 | . 3 . Full Trace Events . | . . . Feedback Events . | . . . Feedback Blocked . | . . . Robot Schematics Acquired . | . . . Robots Built . | . . . Authchips . | . . . Time . | . . . Total Robot Build Rating . | . . . Part Schematics Acquired . | . . . Parts Built . | . . . Authchips . | . . . Time . | . . . Total Part Build Rating . | . . . Parts Repaired . | . . . Time . | . . . Parts Recycled . | . . . Recycled Matter . | . . . Retrieved Matter . | . . . Retrieved Components . | . . . Parts Scanalyzed . | . . . Part Schematics Acquired . | . . . Parts Damaged . | . . . Bothacking | -11 -10 -10 ------------ Run | Yrd Mat Min Used RIF Installer . | . . . Robots Hacked . | . . . Non-combat . | . . . Combat . | . . . Robot Hacks Applied . | . . . Relay Couplers Released . | . . . Fabnet Peak Effective % . | . . . Robots Rewired . | . . . Allies Hacked . | . . . Hacks Repelled . | . . . Allies | -11 -10 -10 -------- Run | Yrd Mat Min Total Allies 1 | . 1 . Largest Group 1 | . 1 1 Highest-Rated Group 10 | . 10 10 Highest-Rated Ally 10 | . 10 10 Total Orders . | . . . Ally Attacks . | . . . Total Damage . | . . . Kills . | . . . Allies Corrupted . | . . . Allies Melted . | . . . Intel | -11 -10 -10 ------- Run | Yrd Mat Min Robot Analysis Total . | . . . Derelict Logs Recovered 2 | . . 2 Drone Launches . | . . . Drone Recoveries . | . . . Exploration | -11 -10 -10 ------------- Run | Yrd Mat Min Turns Passed 953 | 125 453 375 Spaces Moved 504 | 70 239 195 Core 9 | 3 . 6 Treads 495 | 67 239 189 Legs . | . . . Wheels . | . . . Hover . | . . . Flight . | . . . Fastest Speed 50 | 50 160 50 Average Speed 158 | 155 160 156 Slowest Speed 160 | 160 160 160 Overloaded Moves . | . . . Propulsion Burnouts . | . . . Robots Hopped . | . . . Cave-ins Triggered . | . . . Exploration Rate (%) 31 | 5 44 44 Regions Visited 2 Branch Regions 1 Pre-discovered Areas 1 | . . 1 Known Exits Taken . | . . . Unknown Exits Taken 2 | 1 1 . Scrap Searched . | . . . Spaces Dug . | . . . Terrain Destroyed . | . . . Melee . | . . . Projectile . | . . . AOE . | . . . Terrain Rammed . | . . . Walls Destroyed . | . . . Machines Disabled . | . . . Actions | -11 -10 -10 --------- Run | Yrd Mat Min Total 591 | 80 276 235 Wait 38 | . 15 23 Move 502 | 69 238 195 Hop . | . . . Pick Up 5 | 3 1 1 Fast Attach 8 | 6 2 . Attach . | . . . Detach . | . . . Swap 1 | . 1 . Drop 1 | . 1 . Fire 36 | 2 18 16 Melee . | . . . Ram . | . . . Kick . | . . . Crush . | . . . Escape Stasis . | . . . Rewire . | . . . Trap . | . . . Miscellaneous . | . . . Route ------- -11/Scrapyard -10/Materials (discovered 2 exits: [*Mat] / [*Min]) -10/Mines History --------- Turn | Location | Event 62 | -11/Scrapyard | Discovered new exit (range 15) 126 | -11/Scrapyard | Entered Materials 307 | -10/Materials | Build established: Mutant 334 | -10/Materials | Discovered new exit (range 8) 477 | -10/Materials | Discovered new exit (range 8) 579 | -10/Materials | Entered Mines 579 | -10/Mines | Accompanied by 1 ally 586 | -10/Mines | Met a Derelict bent on vengeance 658 | -10/Mines | Learned Materials terminal intel 810 | -10/Mines | Learned location of Zion (-6) 843 | -10/Mines | Core integrity fell below 50% 912 | -10/Mines | Assembled infested the area 917 | -10/Mines | Assisted by a Guerilla fighting off Assembled 951 | -10/Mines | Released all parts (7) 953 | -10/Mines | Core integrity fell below 20% 954 | -10/Mines | Destroyed by D-53 Grenadier with Mini Grenade Launcher Last Messages --------------- 00914_ K-01 Serf collects debris. 00917_ A derelict emerges from the shadows: "You need to get out of here! I've been tracking a group of Assembled to figure out where they're coming from, and they're closing on this area, come on!" 00917_ K-01 Serf collects debris. 00940_ WZ-YL7(h): "I'll hold them off! Go on ahead or try to find another way!" 00946_ C-30 ARC bursts open, deploying its payload. 00946_ D-53 Grenadier unfolds itself. 00946_ K-01 Serf destroyed. 00950_ R-06 Scavenger suffers critical hit (Destroy). 00950_ R-06 Scavenger destroyed. 00950_ T-07 Excavator destroyed. 00951_ Released Lgt. Nuclear Core. 00951_ Released Lrg. Matter Pod. 00951_ Released Lgt. Assault Rifle. 00951_ Released Lgt. Treads. 00951_ Released Sml. Storage Unit. 00951_ Released Assault Rifle. 00953_ K-01 Serf collects debris. Map ----- +----------------------------------------------------+ | ?????????????????????????????????????????????????? | | ?????????????????????????????????????????????????? | | ?????????????????????????????????????????????????? | | ?????????????????????????????????????????????????? | | ????????????###??????????????????????????????????? | | ???????????## #?????????????????????????????????? | | ???????????# #????????????????????????????????? | | ??????????## #???????????????????????????????? | | ??????????? ???????????????????????????????? | | ????????????? ##?????????????????????????????? | | ?????????????? ##????????????????????????????? | | ???????????????# ###??????????????????????????? | | ????????????????# #####??????????????????????? | | ##??????????????# #??????????????????????? | | #???????????????# [ * #??????????????????????? | | #???????????????# = ##??????????????????????? | | ##########??????# [ ##???????????????????????? | | ##????## * ##???????????????????????? | | #### [=#???##k= #???????????????????????? | | ???# *= ##### ! ##??????????????????????? | | ???## =[ # * ###????????????????????? | | ????## = ##???????????????????? | | ?????# ## ##??????????????????? | | ?????# ### % ##?????????????????? | | ?????# ##?## #?????????????????? | | ?????# ##??## @ #?????????????????? | | ?????###??## ##?????????????????? | | ?????????## d #??????????????????? | | ?????????# d ##?????????????????? | | ?????????# ## #?????????????????? | | ??####???# #### ! = #?????????????????? | | ?## ##??# ???## =*! #?????????????????? | | ## ##?# ????# [[ #?????????????????? | | # #?## ????# ####?????????????????? | | # #??###????# !% r ##????????????????????? | | # #??????????# ####?????????????????????? | | #???????????# ##???????????????????????? | | #???????????# ##??????????????????????? | | # #####???????# ##?????????????????????? | | # #??????# ##????????????????????? | | #?????# ##???????????????????? | | #### #?????# ! #???????????????????? | | #??# ####### =%! ??????????????????? | | #??# ! ####?????????????????? | | ##??# ## #????????????????????? | | ###???########### ##?# ##????????????????????? | | ????????????????## ##???###?????????????????????? | | ?????????????????# ?????????????????????????????? | | ?????????????????# ?????????????????????????????? | | ????????????????? ?????????????????????????????? | +----------------------------------------------------+ Best States ------------- Heat Dissipation 25 Energy Generation 14 Energy Capacity 250 Matter Stores 423 Matter Capacity 450 Sight Range 16 Terrain Scan Density 10 Evasion (%) 40 Recoil Reduction 2 Item Schematics ----------------- None Robot Schematics ------------------ None Fabricated ------------ Nothing Alien Tech Used ----------------- None Achievements -------------- None Challenges ------------ None Game ------ Seed KineticCarbideRedirector Manual? 0 Play Time 00:12:02 Cumulative 13.9 hours Start 2024.04.14 @ 16:45:37 End 2024.04.14 @ 16:57:50 Sessions 1 Manual Loads 0 Difficulty Rogue Special Mode None Game No. 16 Rogue 16 Adventurer 0 Explorer 0 Win Type - Total 0 Types 0/0/0/0/0/0/0/0/0 Lore% 20 Gallery% 22 Achievement% 21 Wizard Run 0 Options --------- Layout 0 ASCII 0 Keyboard 0 Movement Numpad Keybinds 0 Fullscreen 2 Font 18/X11 Map View 38x25 Zoom Use 92% Tactical HUD 1 Map Filters NONE Filters NONE Steam 1 RUN: c9c6d028-3229-4781-ab6d-79d9e6d77501